fUST/lending_fUST_20251231
["ID","MTS","AMOUNT","RATE_DAILY","PERIOD"]
[400207615,1767196242297,-560.46,0.00020861,2]
[400207616,1767196242307,-574.12855637,0.00020969,2]
[400207617,1767196242316,-500.0,0.00021,7]
[400207618,1767196242326,-595.37131296,0.00021517,2]
[400207619,1767196242335,-50611.1996849,0.00021771,2]
[400207620,1767196242344,-2049.15890006,0.00021917,2]
[400207621,1767196242354,-260.08767073,0.00021917,2]
[400207622,1767196242364,-345.51,0.00021917,2]
[400207623,1767196242373,-500.0,0.00021917,2]
[400207624,1767196242383,-500.0,0.00021917,2]
[400207625,1767196242392,-1089.48,0.00021917,2]
[400207626,1767196242401,-673.16,0.00021917,2]
[400207627,1767196242412,-500.0,0.00021917,2]
[400207628,1767196242421,-500.0,0.00021917,2]
[400207629,1767196242430,-2098.98,0.00021917,2]
[400207630,1767196242440,-500.0,0.00021917,2]
[400207631,1767196242450,-9696.43,0.00021917,2]
[400207632,1767196242459,-500.0,0.00021917,2]
[400207633,1767196242469,-500.0,0.00021917,2]
[400207634,1767196242479,-500.0,0.00021917,2]
[400207635,1767196242488,-500.0,0.00021917,2]
[400207636,1767196242611,-337.5324406,0.00021917,2]
[400207637,1767196242621,-500.0,0.00021917,2]
[400207638,1767196242631,-500.0,0.00021917,2]
[400207639,1767196242641,-500.0,0.00021917,2]
[400207640,1767196242650,-3308.18,0.00021917,2]
[400207641,1767196242659,-275.96070951,0.00021918,2]
[400207642,1767196242670,-622.73,0.00021959,2]
[400207643,1767196242679,-156.46,0.00022,7]
[400207644,1767196242689,-184.0,0.00022,2]
[400207645,1767196242698,-617.40005154,0.00022065,2]
[400207646,1767196242707,-151.0,0.00022081,2]
[400207647,1767196242716,-2049.15890006,0.00022191,2]
[400207648,1767196242726,-500.0,0.00022191,2]
[400207649,1767196242736,-501.92749062,0.00022191,2]
[400207650,1767196242746,-1089.48,0.00022191,2]
[400207651,1767196242755,-673.16,0.00022191,2]
[400207652,1767196242770,-500.0,0.00022191,2]
[400207653,1767196242781,-313.75261794,0.00022191,2]
[400207654,1767196242791,-2098.98,0.00022191,2]
[400207655,1767196242800,-217.22,0.00022191,2]
[400207656,1767196242810,-9696.43,0.00022191,2]
[400207657,1767196242820,-500.0,0.00022191,2]
[400207658,1767196242831,-500.0,0.00022191,2]
[400207659,1767196242842,-500.0,0.00022191,2]
[400207660,1767196242852,-500.0,0.00022191,2]
[400207661,1767196242866,-500.0,0.00022191,2]
[400207662,1767196242876,-500.0,0.00022191,2]
[400207663,1767196242886,-500.0,0.00022191,2]
[400207664,1767196242896,-3308.18,0.00022191,2]
[400207666,1767196242906,-10000.0,0.00022365,2]
[400207667,1767196242915,-2561.12075965,0.00022465,2]
[400207668,1767196242926,-500.0,0.00022465,2]
[400207669,1767196242935,-1089.48,0.00022465,2]
[400207670,1767196242945,-673.16,0.00022465,2]
[400207672,1767196242954,-500.0,0.00022465,2]
[400207673,1767196242964,-2098.98,0.00022465,2]
[400207676,1767196242974,-9696.43,0.00022465,2]
[400207679,1767196242984,-500.0,0.00022465,2]
[400207681,1767196242993,-624.92,0.00022465,2]
[400207682,1767196243003,-465.09067796,0.00022465,2]
[400207684,1767196243013,-500.0,0.00022465,2]
[400207687,1767196243023,-500.0,0.00022465,2]
[400207688,1767196243033,-500.0,0.00022465,2]
[400207689,1767196243043,-500.0,0.00022465,2]
[400207690,1767196243052,-3308.18,0.00022465,2]
[400207691,1767196243062,-659.689275,0.00022595,2]
[400207692,1767196243072,-640.24385345,0.00022613,2]
[400207693,1767196243081,-193.82,0.000227,2]
[400207694,1767196243091,-500.0,0.00022739,2]
[400207695,1767196243101,-1089.48,0.00022739,2]
[400207696,1767196243110,-673.16,0.00022739,2]
[400207697,1767196243119,-500.0,0.00022739,2]
[400207698,1767196243129,-2098.98,0.00022739,2]
[400207699,1767196243139,-9696.43,0.00022739,2]
[400207700,1767196243149,-500.0,0.00022739,2]
[400207701,1767196243159,-500.0,0.00022739,2]
[400207702,1767196243169,-500.0,0.00022739,2]
[400207703,1767196243178,-500.0,0.00022739,2]
[400207704,1767196243188,-500.0,0.00022739,2]
[400207705,1767196243198,-3308.18,0.00022739,2]
[400207706,1767196243207,-872912.67968728,0.0002277,2]
[400207707,1767196243216,-1038.33,0.000228,14]
[400207708,1767196243227,-500.0,0.00023013,2]
[400207709,1767196243236,-1089.48,0.00023013,2]
[400207710,1767196243246,-673.16,0.00023013,2]
[400207711,1767196243255,-500.0,0.00023013,2]
[400207712,1767196243265,-2098.98,0.00023013,2]
[400207713,1767196243275,-9696.43,0.00023013,2]
[400207714,1767196243285,-545.7550806,0.00023013,2]
[400207715,1767196243294,-500.0,0.00023013,2]
[400207716,1767196243304,-500.0,0.00023013,2]
[400207717,1767196243314,-517.2474778,0.00023013,2]
[400207718,1767196243325,-500.0,0.00023013,2]
[400207719,1767196243335,-3308.18,0.00023013,2]
[400207720,1767196243344,-2156.0,0.00023121,2]
[400207721,1767196243353,-1364.0,0.00023121,2]
[400207722,1767196243362,-627.0,0.00023121,2]
[400207723,1767196243372,-150.0,0.00023121,2]
[400207724,1767196243382,-663.93287602,0.00023161,2]
[400207725,1767196243392,-998.30494915,0.00023282,2]
[400207726,1767196243401,-500.0,0.00023287,2]
[400207727,1767196243411,-1089.48,0.00023287,2]
[400207728,1767196243420,-673.16,0.00023287,2]
[400207729,1767196243430,-500.0,0.00023287,2]
[400207730,1767196243439,-2098.98,0.00023287,2]
[400207731,1767196243448,-9696.43,0.00023287,2]
[400207732,1767196243457,-500.0,0.00023287,2]
[400207733,1767196243467,-500.0,0.00023287,2]
[400207734,1767196243476,-203.39114107,0.00023287,2]
[400207735,1767196243486,-3308.18,0.00023287,2]
[400207736,1767196243496,-10762.96,0.000233,2]
[400207737,1767196243509,-1080.36507781,0.00023359,2]
[400207738,1767196243519,-500.0,0.00023561,2]
[400207739,1767196243528,-1089.48,0.00023561,2]
[400207740,1767196243537,-673.16,0.00023561,2]
[400207741,1767196243547,-500.0,0.00023561,2]
[400207742,1767196243557,-2098.98,0.00023561,2]
[400207743,1767196243567,-9696.43,0.00023561,2]
[400207744,1767196243579,-500.0,0.00023561,2]
[400207745,1767196243588,-500.0,0.00023561,2]
[400207746,1767196243598,-3308.18,0.00023561,2]
[400207747,1767196243608,-688.49839244,0.00023709,2]
[400207748,1767196243617,-200.90977335,0.00023835,2]
[400207749,1767196243627,-500.0,0.00023835,2]
[400207750,1767196243636,-1089.48,0.00023835,2]
[400207751,1767196243645,-673.16,0.00023835,2]
[400207752,1767196243655,-500.0,0.00023835,2]
[400207753,1767196243665,-2098.98,0.00023835,2]
[400207754,1767196243674,-9696.43,0.00023835,2]
[400207755,1767196243683,-500.0,0.00023835,2]
[400207756,1767196243694,-500.0,0.00023835,2]
[400207757,1767196243703,-3308.18,0.00023835,2]
[400207758,1767196243712,-705.18345983,0.000239,2]
[400207759,1767196243722,-705.18345977,0.000239,2]
[400207760,1767196243731,-705.18345977,0.000239,2]
[400207761,1767196243741,-705.18345977,0.000239,2]
[400207762,1767196243751,-705.18345977,0.000239,2]
[400207763,1767196243760,-705.18345977,0.000239,2]
[400207764,1767196243769,-705.18345977,0.000239,2]
[400207765,1767196243779,-705.18345977,0.000239,2]
[400207766,1767196243788,-151.0,0.00023962,2]
[400207767,1767196243797,-2000.0,0.00024014,7]
[400207768,1767196243808,-574.21869989,0.00024109,2]
[400207769,1767196243817,-1089.48,0.00024109,2]
[400207770,1767196243826,-673.16,0.00024109,2]
[400207771,1767196243836,-500.0,0.00024109,2]
[400207772,1767196243845,-2098.98,0.00024109,2]
[400207773,1767196243856,-9696.43,0.00024109,2]
[400207775,1767196243866,-500.0,0.00024109,2]
[400207776,1767196243876,-500.0,0.00024109,2]
[400207777,1767196243885,-3308.18,0.00024109,2]
[400207778,1767196243896,-713.97283296,0.00024257,2]
[400207779,1767196243906,-1089.48,0.00024383,2]
[400207780,1767196243916,-673.16,0.00024383,2]
[400207781,1767196243925,-500.0,0.00024383,2]
[400207782,1767196243934,-2098.98,0.00024383,2]
[400207783,1767196243944,-9696.43,0.00024383,2]
[400207785,1767196243954,-254.06268095,0.00024383,2]
[400207786,1767196243963,-500.0,0.00024383,2]
[400207787,1767196243973,-3308.18,0.00024383,2]
[400207788,1767196243984,-716.77776996,0.00024595,2]
[400207789,1767196243994,-1089.48,0.00024657,2]
[400207790,1767196244003,-673.16,0.00024657,2]
[400207791,1767196244014,-500.0,0.00024657,2]
[400207792,1767196244023,-2098.98,0.00024657,2]
[400207794,1767196244033,-9696.43,0.00024657,2]
[400207795,1767196244043,-500.0,0.00024657,2]
[400207796,1767196244052,-150.0,0.00024658,2]
[400207798,1767196244062,-380.0,0.00024658,2]
[400207799,1767196244071,-150.0,0.00024658,2]
[400207800,1767196244081,-3530.89881036,0.00024705,2]
[400207801,1767196244090,-705.18345977,0.00024757,2]
[400207802,1767196244101,-740.38982778,0.00024805,2]
[400207803,1767196244111,-161.83602163,0.00024831,2]
[400207804,1767196244121,-371114.733813,0.000249,2]
[400207805,1767196244131,-1089.48,0.00024931,2]
[400207806,1767196244141,-673.16,0.00024931,2]
[400207808,1767196244150,-500.0,0.00024931,2]
[400207809,1767196244160,-2098.98,0.00024931,2]
[400207811,1767196244169,-9696.43,0.00024931,2]
[400207813,1767196244179,-500.0,0.00024931,2]
[400207814,1767196244189,-1203.18233645,0.0002498,5]
[400207816,1767196244199,-1053.225924,0.0002498,5]
[400207817,1767196244210,-156.46,0.00025,7]
[400207818,1767196244220,-1000.0,0.00025,5]
[400207820,1767196244229,-776.0,0.000252,2]
[400207821,1767196244239,-1089.48,0.00025205,2]
[400207823,1767196244249,-673.16,0.00025205,2]
[400207824,1767196244259,-500.0,0.00025205,2]
[400207825,1767196244268,-2098.98,0.00025205,2]
[400207826,1767196244278,-9696.43,0.00025205,2]
[400207827,1767196244287,-500.0,0.00025205,2]
[400207828,1767196244296,-151.50509152,0.00025205,2]
[400207829,1767196244306,-767.7842514,0.00025353,2]
[400207830,1767196244315,-1089.48,0.00025479,2]
[400207831,1767196244325,-673.16,0.00025479,2]
[400207832,1767196244335,-500.0,0.00025479,2]
[400207833,1767196244344,-2098.98,0.00025479,2]
[400207834,1767196244354,-9696.43,0.00025479,2]
[400207835,1767196244364,-323.6,0.00025479,2]
[400207836,1767196244374,-376.3998898,0.0002553,2]
[400207837,1767196244383,-1089.48,0.00025753,2]
[400207838,1767196244393,-673.16,0.00025753,2]
[400207839,1767196244403,-192.92,0.00025753,2]
[400207840,1767196244413,-2098.98,0.00025753,2]
[400207841,1767196244423,-9696.43,0.00025753,2]
[400207842,1767196244432,-200.54705607,0.00025778,17]
[400207843,1767196244442,-151.0,0.00025843,2]
[400207844,1767196244452,-796.19226871,0.00025901,2]
[400207845,1767196244462,-288.1810171,0.00025918,18]
[400207846,1767196244472,-705.18345977,0.00026,2]
[400207847,1767196244482,-1089.48,0.00026027,2]
[400207849,1767196244492,-673.16,0.00026027,2]
[400207850,1767196244502,-2098.98,0.00026027,2]
[400207851,1767196244512,-9696.43,0.00026027,2]
[400207852,1767196244524,-11292.885091,0.00026035,2]
[400207853,1767196244534,-1038.33,0.000261,14]
[400207854,1767196244543,-3530.8988103,0.00026109,2]
[400207855,1767196244553,-726.0,0.0002612,3]
[400207856,1767196244564,-2156.0,0.00026121,2]
[400207857,1767196244573,-1364.0,0.00026121,2]
[400207858,1767196244583,-627.0,0.00026121,2]
[400207859,1767196244594,-6464.62555377,0.00026226,9]
[400207860,1767196244604,-5000.0,0.00026226,8]
[400207861,1767196244613,-5000.0,0.00026226,5]
[400207862,1767196244623,-5000.0,0.00026226,8]
[400207863,1767196244633,-5000.0,0.00026226,10]
[400207864,1767196244642,-1089.48,0.00026301,2]
[400207865,1767196244652,-673.16,0.00026301,2]
[400207866,1767196244663,-2098.98,0.00026301,2]
[400207867,1767196244673,-9696.43,0.00026301,2]
[400207868,1767196244683,-998.30494915,0.00026367,2]
[400207869,1767196244693,-215.55321326,0.00026434,2]
[400207870,1767196244703,-825.65138265,0.00026449,2]
[400207871,1767196244713,-1089.48,0.00026575,2]
[400207872,1767196244723,-673.16,0.00026575,2]
[400207873,1767196244733,-2098.98,0.00026575,2]
[400207874,1767196244743,-9696.43,0.00026575,2]
[400207875,1767196244752,-200.54705607,0.00026575,19]
[400207876,1767196244761,-773.86626491,0.00026595,2]
[400207877,1767196244771,-5000.0,0.00026621,2]
[400207878,1767196244781,-10762.96,0.000267,2]
[400207879,1767196244790,-1089.48,0.00026849,2]
[400207880,1767196244800,-673.16,0.00026849,2]
[400207881,1767196244810,-2098.98,0.00026849,2]
[400207882,1767196244820,-9696.43,0.00026849,2]
[400207883,1767196244830,-2519.7832588,0.00026987,2]
[400207884,1767196244840,-1089.48,0.00027123,2]
[400207885,1767196244851,-673.16,0.00027123,2]
[400207886,1767196244861,-2098.98,0.00027123,2]
[400207887,1767196244870,-9696.43,0.00027123,2]
[400207888,1767196244880,-2000.0,0.00027211,7]
[400207889,1767196244890,-2000.0,0.00027298,7]
[400207890,1767196244900,-2000.0,0.00027306,7]
[400207891,1767196244910,-2000.0,0.00027315,7]
[400207892,1767196244920,-2000.0,0.00027324,7]
[400207893,1767196244929,-2000.0,0.00027333,7]
[400207894,1767196244939,-2000.0,0.00027342,7]
[400207895,1767196244949,-2000.0,0.0002735,7]
[400207896,1767196244959,-2000.0,0.00027359,7]
[400207897,1767196244968,-2000.0,0.00027368,7]
[400207898,1767196244978,-200.54705607,0.00027373,20]
[400207899,1767196244987,-2000.0,0.00027377,7]
[400207900,1767196244997,-2000.0,0.00027386,7]
[400207901,1767196245006,-2000.0,0.00027394,7]
[400207902,1767196245016,-1089.48,0.00027397,2]
[400207903,1767196245026,-673.16,0.00027397,2]
[400207904,1767196245037,-2098.98,0.00027397,2]
[400207905,1767196245046,-9696.43,0.00027397,2]
[400207906,1767196245056,-500.65812564,0.00027397,5]
[400207907,1767196245065,-150.0,0.00027397,5]
[400207908,1767196245075,-150.58382148,0.00027397,5]
[400207909,1767196245085,-2000.0,0.00027403,7]
[400207910,1767196245094,-2000.0,0.00027412,7]
[400207911,1767196245104,-2000.0,0.00027421,7]
[400207912,1767196245113,-2000.0,0.0002743,7]
[400207913,1767196245123,-2000.0,0.00027438,7]
[400207914,1767196245132,-2000.0,0.00027447,7]
[400207915,1767196245142,-2000.0,0.00027456,7]
[400207916,1767196245151,-2000.0,0.00027465,7]
[400207917,1767196245161,-2000.0,0.00027474,7]
[400207918,1767196245170,-431.10642653,0.00027476,2]
[400207919,1767196245179,-2000.0,0.00027482,7]
[400207920,1767196245188,-2000.0,0.00027491,7]
[400207921,1767196245198,-2000.0,0.000275,7]
[400207922,1767196245207,-2000.0,0.00027509,7]
[400207923,1767196245216,-3530.8988103,0.00027513,2]
[400207924,1767196245225,-2000.0,0.00027518,7]
[400207925,1767196245235,-2000.0,0.00027526,7]
[400207926,1767196245244,-2000.0,0.00027535,7]
[400207928,1767196245254,-2000.0,0.00027544,7]
[400207930,1767196245263,-2000.0,0.00027553,7]
[400207932,1767196245272,-2000.0,0.00027562,7]
[400207933,1767196245283,-2000.0,0.0002757,7]
[400207935,1767196245292,-2000.0,0.00027579,7]
[400207937,1767196245302,-2000.0,0.00027588,7]
[400207938,1767196245312,-2000.0,0.00027597,7]
[400207939,1767196245321,-2000.0,0.00027606,7]
[400207940,1767196245331,-2000.0,0.00027614,7]
[400207941,1767196245340,-2000.0,0.00027623,7]
[400207942,1767196245349,-2000.0,0.00027632,7]
[400207944,1767196245359,-2000.0,0.00027641,7]
[400207945,1767196245368,-2000.0,0.0002765,7]
[400207947,1767196245377,-2000.0,0.00027658,7]
[400207948,1767196245387,-2000.0,0.00027667,7]
[400207949,1767196245396,-1089.48,0.00027671,2]
[400207950,1767196245407,-673.16,0.00027671,2]
[400207951,1767196245417,-2098.98,0.00027671,2]
[400207952,1767196245427,-9696.43,0.00027671,2]
[400207953,1767196245436,-2000.0,0.00027676,7]
[400207954,1767196245445,-2000.0,0.00027685,7]
[400207955,1767196245455,-2000.0,0.00027694,7]
[400207956,1767196245464,-1041.66666667,0.000277,7]
[400207957,1767196245474,-2000.0,0.00027702,7]
[400207958,1767196245484,-2000.0,0.00027711,7]
[400207959,1767196245598,-2000.0,0.0002772,7]
[400207960,1767196245608,-151.0,0.00027725,2]
[400207961,1767196245617,-367.96456977,0.00027857,5]
[400207962,1767196245633,-1089.48,0.00027945,2]
[400207963,1767196245645,-673.16,0.00027945,2]
[400207964,1767196245655,-151.0,0.00027945,7]
[400207965,1767196245664,-151.0,0.00027945,7]
[400207966,1767196245674,-307.545551,0.00027945,7]
[400207967,1767196245683,-435.404982,0.00027945,7]
[400207968,1767196245692,-307.545551,0.00027945,7]
[400207969,1767196245702,-270.454127,0.00027945,7]
[400207970,1767196245711,-435.404982,0.00027945,7]
[400207971,1767196245721,-307.545551,0.00027945,7]
[400207972,1767196245731,-435.404982,0.00027945,7]
[400207973,1767196245740,-270.454127,0.00027945,7]
[400207974,1767196245753,-307.545551,0.00027945,7]
[400207975,1767196245763,-435.404982,0.00027945,7]
[400207976,1767196245772,-270.454127,0.00027945,7]
[400207977,1767196245782,-270.454127,0.00027945,7]
[400207978,1767196245791,-151.0,0.00027945,7]
[400207979,1767196245800,-151.0,0.00027945,7]
[400207980,1767196245810,-151.0,0.00027945,7]
[400207981,1767196245820,-151.0,0.00027945,7]
[400207982,1767196245829,-151.0,0.00027945,7]
[400207984,1767196245838,-300.511634,0.00027945,7]
[400207986,1767196245847,-152.611704,0.00027945,7]
[400207988,1767196245857,-237.688394,0.00027945,7]
[400207990,1767196245867,-298.426318,0.00027945,7]
[400207992,1767196245877,-237.688394,0.00027945,7]
[400207994,1767196245887,-298.426318,0.00027945,7]
[400207995,1767196245897,-237.688394,0.00027945,7]
[400207996,1767196245906,-298.426318,0.00027945,7]
[400207997,1767196245917,-237.688394,0.00027945,7]
[400207999,1767196245927,-298.426318,0.00027945,7]
[400208001,1767196245937,-177.488115,0.00027945,7]
[400208002,1767196245947,-2098.98,0.00027945,2]
[400208003,1767196245956,-9696.43,0.00027945,2]
[400208005,1767196245966,-152.36606131,0.00027945,5]
[400208006,1767196245975,-156.46,0.00028,7]
[400208007,1767196245985,-179.89206476,0.00028072,2]
[400208009,1767196245995,-24425.5686256,0.00028159,7]
[400208010,1767196246005,-200.54705607,0.00028171,21]
[400208012,1767196246014,-1089.71635778,0.00028219,2]
[400208013,1767196246025,-673.16054229,0.00028219,2]
[400208015,1767196246034,-2099.08,0.00028219,2]
[400208016,1767196246044,-9696.53097059,0.00028219,2]
[400208017,1767196246054,-160.0,0.00028282,3]
[400208018,1767196246063,-193.82,0.000283,2]
[400208019,1767196246073,-830.95475986,0.00028595,2]
[400208020,1767196246083,-2804.79,0.00028767,2]
[400208021,1767196246093,-160.0,0.00028773,4]
[400208022,1767196246103,-2804.88,0.000288,2]
[400208023,1767196246113,-2804.88,0.000288,2]
[400208024,1767196246123,-1038.33,0.000289,14]
[400208025,1767196246132,-2804.88,0.000289,2]
[400208026,1767196246141,-2804.88,0.000289,2]
[400208027,1767196246151,-3530.8988103,0.00028917,2]
[400208028,1767196246161,-500.0,0.00028923,7]
[400208029,1767196246172,-200.54705607,0.00028968,23]
[400208030,1767196246181,-1041.66666667,0.00029,7]
[400208031,1767196246191,-151.0,0.00029,7]
[400208033,1767196246202,-151.0,0.00029,7]
[400208035,1767196246212,-151.0,0.00029,7]
[400208036,1767196246222,-151.0,0.00029,7]
[400208038,1767196246232,-270.657289,0.00029,7]
[400208040,1767196246242,-270.657289,0.00029,7]
[400208041,1767196246252,-321.447028,0.00029,7]
[400208042,1767196246262,-270.657289,0.00029,7]
[400208043,1767196246272,-270.657289,0.00029,7]
[400208044,1767196246282,-321.447028,0.00029,7]
[400208045,1767196246292,-151.0,0.00029,7]
[400208046,1767196246301,-321.447028,0.00029,7]
[400208048,1767196246311,-151.0,0.00029,7]
[400208050,1767196246321,-321.447028,0.00029,7]
[400208051,1767196246330,-315.210295,0.00029,7]
[400208052,1767196246340,-315.210295,0.00029,7]
[400208053,1767196246349,-315.210295,0.00029,7]
[400208054,1767196246359,-315.210295,0.00029,7]
[400208055,1767196246368,-1061.749437,0.00029,7]
[400208056,1767196246378,-1061.749437,0.00029,7]
[400208058,1767196246387,-1061.749437,0.00029,7]
[400208059,1767196246397,-579.465896,0.00029,7]
[400208060,1767196246406,-1061.749437,0.00029,7]
[400208061,1767196246416,-579.465896,0.00029,7]
[400208064,1767196246426,-579.465896,0.00029,7]
[400208065,1767196246436,-247.168557,0.00029,7]
[400208066,1767196246446,-579.465896,0.00029,7]
[400208067,1767196246456,-414.72566,0.00029,7]
[400208068,1767196246466,-414.72566,0.00029,7]
[400208069,1767196246476,-414.72566,0.00029,7]
[400208070,1767196246485,-414.72566,0.00029,7]
[400208071,1767196246495,-166.112827,0.00029,7]
[400208072,1767196246505,-151.0,0.00029,7]
[400208073,1767196246514,-210.696924,0.00029,7]
[400208074,1767196246526,-210.696924,0.00029,7]
[400208075,1767196246536,-210.696924,0.00029,7]
[400208076,1767196246545,-210.696924,0.00029,7]
[400208077,1767196246554,-151.0,0.00029,7]
[400208078,1767196246565,-151.0,0.00029,7]
[400208079,1767196246575,-151.0,0.00029,7]
[400208080,1767196246584,-151.0,0.00029,7]
[400208081,1767196246593,-151.0,0.00029,7]
[400208082,1767196246603,-151.0,0.00029,7]
[400208083,1767196246613,-151.0,0.00029,7]
[400208084,1767196246622,-151.0,0.00029,7]
[400208085,1767196246632,-151.0,0.00029,7]
[400208086,1767196246642,-1500.625286,0.00029,2]
[400208087,1767196246652,-2804.88,0.00029,2]
[400208088,1767196246662,-151.0,0.00029001,7]
[400208089,1767196246672,-151.0,0.00029001,7]
[400208090,1767196246681,-151.0,0.00029001,7]
[400208091,1767196246691,-221.765393,0.00029001,7]
[400208092,1767196246700,-151.0,0.00029001,7]
[400208093,1767196246709,-160.429789,0.00029001,7]
[400208094,1767196246719,-2804.88,0.000291,2]
[400208095,1767196246728,-2804.88,0.000291,2]
[400208096,1767196246737,-2156.0,0.00029121,2]
[400208097,1767196246747,-1364.0,0.00029121,2]
[400208098,1767196246755,-627.0,0.00029121,2]
[400208099,1767196246765,-1100.0,0.00029147,7]
[400208100,1767196246775,-726.0,0.00029192,3]
[400208101,1767196246785,-2804.88,0.000292,2]
[400208102,1767196246794,-2804.88,0.000292,2]
[400208103,1767196246804,-160.0,0.00029265,5]
[400208104,1767196246815,-150.0,0.00029295,30]
[400208105,1767196246824,-2804.88,0.000293,2]
[400208106,1767196246834,-1100.0,0.00029352,7]
[400208107,1767196246844,-165.71,0.000294,7]
[400208108,1767196246853,-160.6,0.000294,7]
[400208109,1767196246862,-2804.88,0.000294,2]
[400208110,1767196246871,-2804.88,0.000294,2]
[400208111,1767196246881,-998.30494915,0.00029451,2]
[400208112,1767196246890,-1100.0,0.00029478,7]
[400208113,1767196246900,-10762.96,0.000295,2]
[400208114,1767196246911,-1500.0,0.000295,2]
[400208115,1767196246920,-2804.88,0.000295,2]
[400208116,1767196246930,-2804.88,0.000295,2]
[400208117,1767196246942,-1100.0,0.00029509,7]
[400208118,1767196246955,-726.0,0.00029512,3]
[400208119,1767196246969,-1100.0,0.00029551,7]
[400208120,1767196246981,-1100.0,0.00029599,7]
[400208121,1767196246995,-2804.88,0.000296,2]
[400208122,1767196247007,-2804.88,0.000296,2]
[400208123,1767196247017,-151.0,0.00029606,3]
[400208124,1767196247030,-1041.66666667,0.000297,7]
[400208125,1767196247043,-2804.88,0.000297,2]
[400208127,1767196247055,-160.0,0.00029756,6]
[400208128,1767196247067,-200.54705607,0.00029766,24]
[400208129,1767196247080,-2804.88,0.000298,2]
[400208130,1767196247093,-2804.88,0.000298,2]
[400208131,1767196247104,-2804.88,0.000299,2]
[400208132,1767196247116,-2804.88,0.000299,2]
[400208133,1767196247128,-1100.0,0.00029991,7]
[400208134,1767196247140,-200.0,0.0003,120]
[400208135,1767196247153,-166.0,0.0003,14]
[400208136,1767196247166,-1500.0,0.0003,2]
[400208137,1767196247178,-2804.88,0.0003,2]
[400208138,1767196247189,-166.0,0.0003,14]
[400208139,1767196247201,-1100.0,0.0003002,7]
[400208140,1767196247212,-156.46,0.000301,7]
[400208141,1767196247223,-2804.88,0.000301,2]
[400208142,1767196247236,-2804.88,0.000301,2]
[400208143,1767196247248,-819.5,0.00030117,30]
[400208144,1767196247259,-1226.0,0.00030117,30]
[400208145,1767196247271,-19863.0,0.00030117,30]
[400208146,1767196247282,-500.0,0.00030148,7]
[400208147,1767196247292,-1100.0,0.00030166,7]
[400208148,1767196247303,-2804.88,0.000302,2]
[400208149,1767196247315,-2804.88,0.000302,2]
[400208150,1767196247326,-160.0,0.00030248,7]
[400208151,1767196247338,-2804.88,0.000303,2]
[400208152,1767196247350,-3530.8988103,0.00030321,2]
[400208153,1767196247362,-206.041317,0.000304,31]
[400208154,1767196247374,-151.0,0.000304,31]
[400208155,1767196247386,-151.0,0.000304,31]
[400208156,1767196247398,-2804.88,0.000304,2]
[400208157,1767196247410,-2804.88,0.000304,2]
[400208158,1767196247422,-2000.0,0.00030408,7]
[400208159,1767196247436,-166.0,0.00030411,14]
[400208160,1767196247447,-1100.0,0.00030442,7]
[400208161,1767196247458,-1100.0,0.00030493,7]
[400208162,1767196247468,-2804.88,0.000305,2]
[400208163,1767196247478,-2804.88,0.000305,2]
[400208164,1767196247488,-200.54705607,0.00030564,26]